Cogmind - Beta 17.1 @@@ ROGUE MODE // 2026.09.12 @ 02:44:37 Player: zed Result: Destroyed by G-34 Mercenary with Small Laser Performance ------------- Evolutions (0) 0 Regions Visited (1) 200 Robots Destroyed (10) 50 Value Destroyed (270) 270 Prototype IDs (1) 20 Alien Tech Used (0) 0 Bonus (0) 0 TOTAL SCORE: 540 Bonus ------- None Cogmind --------- Core Integrity 0/250 Matter 119/300 Energy 125/125 System Corruption 0% Temperature Cool (10) Movement Flying (32) Location -10/Materials Parts ------- > --- POWER (1) -------- Light Ion Engine > --- PROPULSION (2) --- VTOL Module VTOL Module > --- UTILITY (2) ------ Utility Shielding > --- WEAPON (2) ------- Rocket Launcher > --- INVENTORY (5) ---- Cooled Ion Engine VTOL Module Small Storage Unit Rocket Launcher Rocket Launcher Peak State ------------ > --- POWER ------------ Cooled Ion Engine > --- PROPULSION ------- VTOL Module VTOL Module > --- UTILITY ---------- Small Storage Unit Visual Processing Unit > --- WEAPON ----------- Rocket Launcher > --- INVENTORY -------- Light Ion Engine Aluminum Leg Aluminum Leg Utility Shielding Rocket Launcher Rocket Launcher Rocket Launcher [Rating: 13] Favorites ----------- Power Ion Engine Engine Ion Engine Propulsion Light Treads Treads Light Treads Flight Unit VTOL Module Utility Small Storage Unit Storage Small Storage Unit Processor Visual Processing Unit Protection Utility Shielding Weapon Small Laser Energy Gun Small Laser Launcher Rocket Launcher Special Weapon Welding Torch Build | -11 -10 ------- Run | Yrd Mat Slots Evolved . | . . Power . | . . Propulsion . | . . Utility . | . . Weapon . | . . Parts Attached 15 | 6 9 Power 3 | 1 2 Engine 3 | 1 2 Core . | . . Reactor . | . . Propulsion 4 | 2 2 Treads 2 | 2 . Leg . | . . Wheel . | . . Hover . | . . Flight 2 | . 2 Utility 3 | 1 2 Device . | . . Storage 1 | 1 . Processor 1 | . 1 Hackware . | . . Protection 1 | . 1 Artifact . | . . Weapon 5 | 2 3 Energy Gun 3 | 2 1 Energy Cannon . | . . Ballistic Gun . | . . Ballistic Cannon . | . . Launcher 1 | . 1 Special Weapon 1 | . 1 Impact Weapon . | . . Slashing Weapon . | . . Piercing Weapon . | . . Special Melee Weapon . | . . Unidentified Prototypes 1 | . 1 Parts Lost 6 | . 6 Power 1 | . 1 Propulsion 2 | . 2 Utility . | . . Weapon 3 | . 3 Highest Loss Streak 6 | . 6 To Critical Strikes . | . . Average Backups 4 | 1 5 Power 1 | . 1 Propulsion 1 | . 1 Utility . | . . Weapon 1 | . 1 Tool/Special . | . . Unused Backups 6 | . 6 Power 1 | . 1 Propulsion 2 | . 2 Utility . | . . Weapon 3 | . 3 Tool/Special . | . . Average Slot Usage (%) 85 | . 85 Engine 11 | . 11 Treads 21 | . 21 Flight 1 | . 1 Storage 13 | . 13 Processor 11 | . 11 Energy Gun 21 | . 21 Launcher 2 | . 2 Peak Build Rating 13 | 6 13 Average Rating 6 | 5 7 On Entrance 3 | . 6 Avg Prop Armor Cover (%) . | . . Naked Turns . | . . Heaviest Build 17 | 11 17 Greatest Support 40 | 40 40 Greatest Overweight (x) 5 | 2 5 Average Overweight (x) . | . . Largest Inventory Capacity 8 | 8 8 Average Capacity 7 | 7 7 Most Carried 8 | 4 8 Average Carried 4 | 1 5 Final Capacity 8 | 8 5 Final Carried 5 | 4 5 Class Distribution -------------------- 100% | Mutant Dominant Class ---------------- Mutant | -10/Materials Resources | -11 -10 ----------- Run | Yrd Mat Matter Collected 308 | 251 57 Remotely . | . . Salvage Created 287 | . 287 Parts 22 | . 22 Haulers Intercepted . | . . Recyclers Shooed . | . . Parts Field Recycled . | . . Retrieved Matter . | . . Parts Self-Destructed . | . . Prevented . | . . Parts Restored . | . . Kills | -11 -10 ------- Run | Yrd Mat Combat Hostiles Destroyed 6 | . 6 Guns 3 | . 3 AOE 3 | . 3 Classes Destroyed 4 | . 4 Worker 1 | . 1 Builder 2 | . 2 Watcher 1 | . 1 Grunt 6 | . 6 Best Kill Streak 8 | . 8 Combat Bots Only 3 | . 3 Max Kills in Single Turn 2 | . 2 Gunslinging . | . . Exploded 1 | . 1 Melee . | . . Uniques/NPCs Destroyed . | . . Combat | -11 -10 -------- Run | Yrd Mat Hostile Shots Fired 71 | . 71 Missed 12 | . 12 Hits 59 | . 59 Projectile 59 | . 59 Damage Taken 796 | . 796 Core 257 | . 257 Absorbed by Shields . | . . Core Remaining (%) 100 | 100 . Volleys Fired 31 | . 31 Largest 2 | . 2 Hottest 90 | . 90 Shots Fired 46 | . 46 Gun 35 | . 35 Cannon . | . . Launcher 10 | . 10 Special 1 | . 1 Kinetic . | . . Thermal 32 | . 32 Explosive 10 | . 10 Electromagnetic 4 | . 4 Robot Hit Streak 7 | . 7 Robot Miss Streak 2 | . 2 Penetration Max . | . . Secondary Targets . | . . Shots Hit Robots 31 | . 31 Core Hits 20 | . 20 Critical Kills . | . . Critical Parts Destroyed . | . . Critical Strikes 1 | . 1 Corrupt 1 | . 1 Melee Attacks . | . . Impact . | . . Slashing . | . . Piercing . | . . Sneak Attacks . | . . Combat Hostiles . | . . Follow-up Attacks . | . . Damage Inflicted 889 | . 889 Guns 294 | . 294 Cannons . | . . Explosions 589 | . 589 Melee . | . . Ramming 6 | . 6 Kinetic . | . . Thermal 383 | . 383 Explosive 461 | . 461 Electromagnetic 39 | . 39 Impact . | . . Slashing . | . . Piercing . | . . Highest Corruption . | . . Average Corruption . | . . Corruption Purged . | . . Corruption Blocked . | . . Overload Shots . | . . Overflow Damage 35 | . 35 Projectiles . | . . Explosions 35 | . 35 Melee . | . . Knockbacks . | . . Impact . | . . Kinetic . | . . Secondary . | . . Self-Inflicted Damage 57 | . 57 Shots 2 | . 2 Rammed 3 | . 3 Targets Rammed 3 | . 3 Kicked . | . . Crushed . | . . Highest Temperature 439 | . 439 Average Temperature 217 | . 217 Received Heat Transfer 417 | . 417 Effects 8 | . 8 Matter Decay 1 | . 1 Short Circuit 2 | . 2 Damage (minor) 2 | . 2 Damage (major) 3 | . 3 Siege Activations . | . . Martial Activations . | . . Shielding Activations . | . . Robots Disrupted . | . . Combat Hostiles . | . . Robots Corrupted . | . . Combat Hostiles . | . . Parts Fried . | . . Impact Corruptions . | . . Robots Melted . | . . Combat Hostiles . | . . Parts Melted . | . . Heat Transferred 797 | . 797 Parts Sabotaged . | . . Parts Stolen . | . . Parts Stripped . | . . Power Chain Reactions 1 | . 1 Alert | -11 -10 ------- Run | Yrd Mat Maximum Alert Level . | . . Low Security (%) 100 | 100 100 Level 1 . | . . Level 2 . | . . Level 3 . | . . Level 4 . | . . Level 5 . | . . High Security . | . . Max Security . | . . Peak Influence 135 | . 135 Initial . | . . Average 16 | . 21 Influence Increases 249 | . 249 Destroy 0b10 Robot/C 120 | . 120 Destroy 0b10 Robot/NC 20 | . 20 Destroy Leader 42 | . 42 Destroy Structure 67 | . 67 Influence Decreases 114 | . 114 Time Decay 57 | . 57 Lost Part 57 | . 57 Squads Dispatched 1 | . 1 Investigation . | . . Extermination . | . . Reinforcement 1 | . 1 Assault . | . . Garrison . | . . Intercept . | . . Searches Triggered . | . . Construction Impeded . | . . Haulers Reinforced . | . . Active Scanning Responses . | . . Cargo Convoy Interrupts . | . . Stealth | -11 -10 --------- Run | Yrd Mat Distress Signals 1 | . 1 Communications Jammed . | . . Distress Signals . | . . Times Spotted 10 | . 10 Peak Tracking Total 6 | . 6 Tactical Retreats . | . . Traps | -11 -10 ------- Run | Yrd Mat Traps Triggered . | . . Indirectly . | . . Trap Hack Attempts . | . . Triggered . | . . Disarmed . | . . Reprogrammed . | . . Reused . | . . Traps Extracted . | . . Installed . | . . Triggered . | . . Machines | -11 -10 ---------- Run | Yrd Mat Machines Disabled . | . . Max in Single Turn . | . . Machines Repaired . | . . Machines Dismantled . | . . Machines Sabotaged . | . . Overloaded Fab Kills . | . . Hacking | -11 -10 --------- Run | Yrd Mat Machines Accessed . | . . Terminals . | . . Fabricators . | . . Repair Stations . | . . Recycling Units . | . . Scanalyzers . | . . Garrison Access . | . . Total Hacks . | . . Successful . | . . Failed . | . . Catastrophic . | . . Database Lockouts . | . . Manual . | . . Terminals . | . . Fabricators . | . . Repair Stations . | . . Recycling Units . | . . Scanalyzers . | . . Garrison Access . | . . Terminal Hacks . | . . Fabricator Hacks . | . . Repair Station Hacks . | . . Recycling Unit Hacks . | . . Scanalyzer . | . . Garrison Access Hacks . | . . Unauthorized Hacks . | . . Terminals . | . . Fabricators . | . . Repair Stations . | . . Recycling Units . | . . Scanalyzers . | . . Garrison Access . | . . Data Cores Recovered . | . . Used . | . . Hacking Detections . | . . Full Trace Events . | . . Feedback Events . | . . Feedback Blocked . | . . Robot Schematics Acquired . | . . Robots Built . | . . Authchips . | . . Time . | . . Total Robot Build Rating . | . . Part Schematics Acquired . | . . Parts Built . | . . Authchips . | . . Time . | . . Total Part Build Rating . | . . Part Studies Acquired . | . . Parts Repaired . | . . Time . | . . Parts Recycled . | . . Recycled Matter . | . . Retrieved Matter . | . . Retrieved Components . | . . Parts Scanalyzed . | . . Part Schematics Acquired . | . . Parts Damaged . | . . Bothacking | -11 -10 ------------ Run | Yrd Mat Used RIF Installer . | . . Robots Hacked . | . . Non-combat . | . . Combat . | . . Robot Hacks Applied . | . . Relay Couplers Released . | . . Fabnet Peak Effective % . | . . Robots Rewired . | . . Allies Hacked . | . . Hacks Repelled . | . . Allies | -11 -10 -------- Run | Yrd Mat Total Allies . | . . Largest Group . | . . Highest-Rated Group . | . . Highest-Rated Ally . | . . Total Orders . | . . Ally Attacks . | . . Total Damage . | . . Kills . | . . Allies Corrupted . | . . Allies Melted . | . . Intel | -11 -10 ------- Run | Yrd Mat Active Infowar (turns) 180 | . 180 Optics 180 | . 180 Robot Analysis Total . | . . Derelict Logs Recovered . | . . Drone Launches . | . . Drone Recoveries . | . . Exploration | -11 -10 ------------- Run | Yrd Mat Turns Passed 365 | 76 289 Spaces Moved 160 | 43 117 Core 23 | 8 15 Treads 131 | 35 96 Legs . | . . Wheels . | . . Hover . | . . Flight 6 | . 6 Fastest Speed 32 | 50 32 Average Speed 152 | 148 153 Slowest Speed 355 | 160 355 Overloaded Moves . | . . Propulsion Burnouts . | . . Robots Hopped . | . . Potential Cave-ins . | . . Cave-ins Triggered . | . . Exploration Rate (%) 14 | 3 25 Regions Visited 1 Branch Regions . Pre-discovered Areas . | . . Known Exits Taken . | . . Unknown Exits Taken 1 | 1 . Scrap Searched . | . . Spaces Dug . | . . Terrain Destroyed 69 | . 69 Melee . | . . Projectile . | . . AOE 69 | . 69 Terrain Rammed . | . . Walls Destroyed . | . . Machines Disabled . | . . Actions | -11 -10 --------- Run | Yrd Mat Total 232 | 52 180 Wait 5 | . 5 Move 159 | 42 117 Hop . | . . Pick Up 11 | 4 7 Fast Attach 12 | 6 6 Attach . | . . Detach 1 | . 1 Swap 4 | . 4 Drop 6 | . 6 Fire 31 | . 31 Melee . | . . Ram 3 | . 3 Kick . | . . Crush . | . . Escape Stasis . | . . Rewire . | . . Trap . | . . Miscellaneous . | . . Route ------- -11/Scrapyard -10/Materials (discovered 2 exits: [*Mat] / [*Min]) History --------- Turn | Location | Event 9 | -11/Scrapyard | Discovered new exit (range 16) 77 | -11/Scrapyard | Entered Materials 135 | -10/Materials | Discovered new exit (range 3) 290 | -10/Materials | Core integrity fell below 50% 313 | -10/Materials | Core integrity fell below 20% 331 | -10/Materials | Lost 6 parts (1p2n3w) 359 | -10/Materials | Discovered new exit (range 16) 366 | -10/Materials | Destroyed by G-34 Mercenary with Small Laser Last Messages --------------- U-05 Engineer lays Concrete. Dropped Aluminum Leg. U-05 Engineer lays Concrete. Dropped Aluminum Leg. Discarded Broken Visual Processing Unit. U-05 Engineer lays Concrete. R-06 Scavenger collects Lgt. Ion Engine. U-05 Engineer lays Concrete. Dropped Rocket Launcher. Acquired VTOL Module. The unstable cave ceiling collapses. U-05 Engineer lays Concrete. EXIT=FOUND U-05 Engineer lays Concrete. R-06 Scavenger collects Sml. Laser. U-05 Engineer lays Concrete. G-47 Trooper destroyed. R-06 Scavenger collects Sml. Laser. U-05 Engineer lays Concrete. U-05 Engineer builds a Wall. Map ----- +----------------------------------------------------+ | ????????# #??????????????????????? | | ????????# ########???????????????? | | ????????# +???????????????? | | ????????# ########???????????????? | | ????????# #??????????????????????? | | ????????# #??????????????????????? | | ????????# #??????????????????????? | | ????????# #??????????????????????? | | ????????# #??????????????????????? | | ????????# #??????????????????????? | | ######### # #???????????????????? | | # # #???????????????????? | | # T # #### #???????????????????? | | # # ## ####??#??????????????? | | # # # ?? #??????????????? | | #! # # ?? ???????????????? | | # ? ????????????????? | | # % ? ????????????????? | | # % ?????????????????? | | # = # t ??????????????????? | | ### ???????????????????? | | # = ????????????????????? | | # # #????????????????????? | | # t# ur # ###??????????????????? | | #!% ! **#??????????????????? | | #! # @ * *#??????????????????? | | #! ==#??????????????????? | | # = #??????????????????? | | # []#??????????????????? | | # !# #?????????????????? | | ####?# ###?????????????????? | | ????? # #???????????????????? | | ????" ! #???????????????????? | | ???"" #???????????????????? | | ???"" =%g ?#???????????????????? | | ???? * ?????????????????????? | | ???"" ????????????????????? | | ???"" ????????????????????? | | ????" # ????????????????????? | | ????? ? #????????????????????? | | ??????? ? < ?????????????????????? | | ?????????????????????????????????? | | ?????????????????????????????????? | | ?????????????????????????????????? | | ?????????????????????????????????? | | ?????????????????????????????????? | | ?????????????????????????????????? | | | | | | | +----------------------------------------------------+ Best States ------------- Heat Dissipation 25 Energy Generation 14 Energy Capacity 280 Matter Stores 300 Matter Capacity 300 Sight Range 18 Terrain Scan Density 10 Utility Shielding 33 Evasion (%) 50 Recoil Reduction 2 Item Schematics ----------------- None Robot Schematics ------------------ None Fabricated ------------ Nothing Repaired ---------- Nothing Studied --------- None Alien Tech Used ----------------- None Achievements -------------- None Challenges ------------ None Game ------ Seed RecoilSpreadCape Manual? 0 Play Time 00:08:28 Cumulative 22.9 hours Start 2026.09.12 @ 02:37:56 End 2026.09.12 @ 02:44:37 Sessions 1 Manual Loads 0 Difficulty Rogue Special Mode None Game No. 8 Rogue 8 Adventurer 0 Explorer 0 Win Type - Total 0 Types 0/0/0/0/0/0/0/0/0/0 Lore% 16 Gallery% 18 Achievement% 17 Wizard Run 0 Options --------- Layout 1 ASCII 0 Keyboard 0 Movement Numpad Keybinds 0 Fullscreen 2 Font 32/SmallcapsGlow Map View 50x35 Zoom Use 0% Tactical HUD 0 Map Filters NONE Filters NONE Steam 1 RUN: 436f17b8-b5fd-4073-9216-48e795870859